[Event "Cracovia Festival-A 2023"]
[Site "Krakow"]
[Date "2023.12.30"]
[Round "4.41"]
[White "van der Merwe, Alexander"]
[Black "Mirski, Stanislaw"]
[Result "1-0"]
[ECO "B41"]
[WhiteElo "2113"]
[BlackElo "2187"]
[Annotator "ChessBase"]
[PlyCount "69"]
[EventDate "2023.12.24"]
[EventType "swiss"]
[EventCountry "POL"]
[SourceTitle "playchess.com"]
[Source "ChessBase"]
[SourceQuality "1"]
[TimeControl "40/5400+30:1800+30"]

1. e4 {[%emt 0:00:05]} c5 {[%emt 0:00:01]} 2. Nf3 {[%emt 0:00:08]} e6 {[%emt 0:00:01]} 3. d4 {[%emt 0:00:07]} cxd4 {[%emt 0:00:03]} 4. Nxd4 {[%emt 0:00:07]} a6 {[%emt 0:00:04]} 5. c4 {[%emt 0:00:22]} Qc7 {[%emt 0:06:55]} 6. a3 {[%emt 0:03:08]} b6 {[%emt 0:04:53]} 7. Nc3 {[%emt 0:01:35]} Bb7 {[%emt 0:00:02]} 8. Bd3 {[%emt 0:04:32]} Nc6 {[%emt 0:04:23]} 9. Nxc6 {[%emt 0:02:04]} dxc6 {[%emt 0:02:56]} 10. f4 {[%emt 0:03:51]} Bc5 {[%emt 0:08:25]} 11. Qf3 {[%emt 0:10:16]} Rd8 {[%emt 0:11:51]} 12. Bc2 {[%emt 0:08:12]} e5 {[%emt 0:05:18]} 13. fxe5 {[%emt 0:06:05]} Ne7 {[%emt 0:03:11]} 14. Ne2 {[%emt 0:07:32]} Qxe5 {[%emt 0:04:50]} 15. Rb1 {[%emt 0:00:46]} O-O {[%emt 0:01:54]} 16. b4 {[%emt 0:02:40]} Bd4 {[%emt 0:01:36]} 17. c5 {[%emt 0:09:20]} b5 {[%emt 0:17:54]} 18. Bf4 {[%emt 0:01:46]} Qf6 {[%emt 0:01:16]} 19. Bd6 {[%emt 0:00:19]} Qxf3 {[%emt 0:06:27]} 20. gxf3 {[%emt 0:00:09]} Bf6 {[%emt 0:00:02]} 21. h4 {[%emt 0:01:14]} Rfe8 {[%emt 0:10:12]} 22. e5 {[%emt 0:00:45]} Bxe5 {[%emt 0:00:02]} 23. Bxe5 {[%emt 0:00:15]} Nd5 {[%emt 0:00:15]} 24. Bb2 {[%emt 0:02:17]} Nf4 {[%emt 0:02:18]} 25. Rh2 {[%emt 0:00:42]} Nd3+ {[%emt 0:00:40]} 26. Bxd3 {[%emt 0:04:42]} Rxd3 {[%emt 0:00:01]} 27. Rf2 {[%emt 0:01:53]} Bc8 {[%emt 0:02:07]} 28. Rd1 {[%emt 0:00:33]} Rb3 {[%emt 0:01:28]} 29. Rd2 {[%emt 0:00:23]} Be6 {[%emt 0:00:19]} 30. Kf1 {[%emt 0:06:09]} h6 {[%emt 0:01:24]} 31. Kg2 {[%emt 0:00:12]} Bd5 {[%emt 0:03:05]} 32. Nd4 {[%emt 0:00:38]} Rbe3 {[%emt 0:00:08]} 33. Kg3 {[%emt 0:00:25]} g5 {[%emt 0:01:55]} 34. h5 {[%emt 0:01:54]} R8e5 {[%emt 0:00:57]} 35. Nc2 {[%emt 0:00:49]} 1-0

[Event "Cracovia Festival-A 2023"]
[Site "Krakow"]
[Date "2023.12.30"]
[Round "4.42"]
[White "Krzyzanowski, Patryk"]
[Black "Selbes, Tamer Tarik"]
[Result "0-1"]
[ECO "D38"]
[WhiteElo "2102"]
[BlackElo "2185"]
[Annotator "ChessBase"]
[PlyCount "84"]
[EventDate "2023.12.24"]
[EventType "swiss"]
[EventCountry "POL"]
[SourceTitle "playchess.com"]
[Source "ChessBase"]
[SourceQuality "1"]
[TimeControl "40/5400+30:1800+30"]

1. d4 {[%emt 0:00:04]} Nf6 {[%emt 0:00:06]} 2. c4 {[%emt 0:00:06]} e6 {[%emt 0:00:19]} 3. Nf3 {[%emt 0:00:08]} d5 {[%emt 0:00:53]} 4. Nc3 {[%emt 0:04:06]} Bb4 {[%emt 0:01:33]} 5. Qa4+ {[%emt 0:02:32]} Nc6 {[%emt 0:00:11]} 6. Ne5 {[%emt 0:00:20]} Bd7 {[%emt 0:13:30]} 7. Nxc6 {[%emt 0:03:12]} Bxc3+ {[%emt 0:00:07]} 8. bxc3 {[%emt 0:00:05]} Bxc6 {[%emt 0:00:04]} 9. Qa3 {[%emt 0:03:20]} dxc4 {[%emt 0:03:59]} 10. f3 {[%emt 0:05:51]} Qd6 {[%emt 0:12:37]} 11. Qa5 {[%emt 0:03:08]} b6 {[%emt 0:13:06]} 12. Qa6 {[%emt 0:02:06]} e5 {[%emt 0:04:37]} 13. Ba3 {[%emt 0:07:35]} Qd5 {[%emt 0:02:13]} 14. Rb1 {[%emt 0:31:03]} exd4 {[%emt 0:02:40]} 15. e4 {[%emt 0:00:57]} dxe3 {[%emt 0:00:45]} 16. Rd1 {[%emt 0:06:10]} Bb5 {[%emt 0:05:54]} 17. Rxd5 {[%emt 0:00:15]} Bxa6 {[%emt 0:00:05]} 18. Re5+ {[%emt 0:00:12]} Kd8 {[%emt 0:01:58]} 19. Re7 {[%emt 0:03:01]} Rf8 {[%emt 0:00:42]} 20. Rxe3 {[%emt 0:14:30]} Re8 {[%emt 0:01:04]} 21. Rxe8+ {[%emt 0:00:06]} Kxe8 {[%emt 0:00:06]} 22. Kd2 {[%emt 0:00:09]} Rd8+ {[%emt 0:00:25]} 23. Kc2 {[%emt 0:00:09]} Nd5 {[%emt 0:00:24]} 24. Bc1 {[%emt 0:00:11]} b5 {[%emt 0:00:34]} 25. a3 {[%emt 0:00:45]} Bc8 {[%emt 0:00:15]} 26. g4 {[%emt 0:00:34]} f5 {[%emt 0:00:20]} 27. h3 {[%emt 0:00:27]} f4 {[%emt 0:00:46]} 28. Be2 {[%emt 0:04:11]} Kf7 {[%emt 0:07:20]} 29. Rd1 {[%emt 0:02:23]} g5 {[%emt 0:00:10]} 30. Rd4 {[%emt 0:00:47]} Bb7 {[%emt 0:00:48]} 31. Bd2 {[%emt 0:01:13]} Re8 {[%emt 0:00:33]} 32. Kd1 {[%emt 0:00:44]} c5 {[%emt 0:00:15]} 33. Re4 {[%emt 0:01:11]} Ne3+ {[%emt 0:01:01]} 34. Bxe3 {[%emt 0:01:32]} Bxe4 {[%emt 0:00:24]} 35. Bxc5 {[%emt 0:00:23]} Bd3 {[%emt 0:01:51]} 36. Bxd3 {[%emt 0:00:47]} Rd8 {[%emt 0:01:02]} 37. Bd4 {[%emt 0:00:28]} Rxd4 {[%emt 0:00:24]} 38. cxd4 {[%emt 0:01:11]} cxd3 {[%emt 0:00:03]} 39. Kd2 {[%emt 0:01:59]} Ke6 {[%emt 0:00:04]} 40. Kxd3 {[%emt 0:00:00]} Kd5 {[%emt 0:00:00]} 41. Kc3 {[%emt 0:01:19]} a5 {[%emt 0:00:11]} 42. Kd3 {[%emt 0:00:07]} b4 {[%emt 0:00:11]} 0-1

[Event "Cracovia Festival-A 2023"]
[Site "Krakow"]
[Date "2023.12.30"]
[Round "4.43"]
[White "Grochol, Kamil"]
[Black "Szczurek, Krzysztof"]
[Result "1/2-1/2"]
[ECO "B90"]
[WhiteElo "2101"]
[BlackElo "2175"]
[Annotator "ChessBase"]
[PlyCount "59"]
[EventDate "2023.12.24"]
[EventType "swiss"]
[EventCountry "POL"]
[SourceTitle "playchess.com"]
[Source "ChessBase"]
[SourceQuality "1"]
[TimeControl "40/5400+30:1800+30"]

1. e4 {[%emt 0:00:11]} c5 {[%emt 0:00:06]} 2. Nf3 {[%emt 0:00:42]} d6 {[%emt 0:00:08]} 3. d4 {[%emt 0:00:16]} cxd4 {[%emt 0:00:07]} 4. Nxd4 {[%emt 0:00:05]} Nf6 {[%emt 0:00:05]} 5. Nc3 {[%emt 0:00:05]} a6 {[%emt 0:00:03]} 6. f3 {[%emt 0:00:13]} e5 {[%emt 0:00:22]} 7. Nb3 {[%emt 0:00:09]} Be6 {[%emt 0:00:06]} 8. Be3 {[%emt 0:00:27]} Be7 {[%emt 0:00:53]} 9. Qd2 {[%emt 0:00:27]} O-O {[%emt 0:01:48]} 10. O-O-O {[%emt 0:00:15]} b5 {[%emt 0:00:50]} 11. g4 {[%emt 0:03:06]} b4 {[%emt 0:06:00]} 12. Nd5 {[%emt 0:01:27]} Bxd5 {[%emt 0:00:06]} 13. exd5 {[%emt 0:00:05]} a5 {[%emt 0:00:07]} 14. Kb1 {[%emt 0:01:04]} a4 {[%emt 0:01:08]} 15. Nc1 {[%emt 0:00:06]} Qa5 {[%emt 0:00:07]} 16. h4 {[%emt 0:09:08]} Na6 {[%emt 0:03:41]} 17. a3 {[%emt 0:08:57]} Bd8 {[%emt 0:15:57]} 18. Bxa6 {[%emt 0:07:40]} Qxa6 {[%emt 0:00:05]} 19. g5 {[%emt 0:06:11]} Nh5 {[%emt 0:00:56]} 20. Qxb4 {[%emt 0:07:23]} Ng3 {[%emt 0:06:33]} 21. Rh3 {[%emt 0:15:08]} Nf5 {[%emt 0:01:05]} 22. Qe4 {[%emt 0:01:13]} Nxe3 {[%emt 0:01:02]} 23. Qxe3 {[%emt 0:00:06]} Bb6 {[%emt 0:00:37]} 24. Qe4 {[%emt 0:04:48]} Rfc8 {[%emt 0:08:31]} 25. Nd3 {[%emt 0:01:42]} Rc4 {[%emt 0:01:11]} 26. Qf5 {[%emt 0:05:09]} Bd4 {[%emt 0:08:05]} 27. h5 {[%emt 0:06:40]} Qc8 {[%emt 0:13:30]} 28. Qxc8+ {[%emt 0:01:06]} Raxc8 {[%emt 0:00:04]} 29. Nb4 {[%emt 0:03:50]} Be3 {[%emt 0:00:07]} 30. g6 {[%emt 0:08:58]} 1/2-1/2

[Event "Cracovia Festival-A 2023"]
[Site "Krakow"]
[Date "2023.12.30"]
[Round "4.44"]
[White "Kaliszuk, Kamil"]
[Black "Ramirez Garcia, Jorge Alberto"]
[Result "1/2-1/2"]
[ECO "C22"]
[WhiteElo "2107"]
[BlackElo "2249"]
[Annotator "RC"]
[PlyCount "121"]
[EventDate "2023.12.24"]
[EventType "swiss"]
[EventCountry "POL"]
[SourceTitle "playchess.com"]
[Source "ChessBase"]
[SourceQuality "1"]
[TimeControl "40/5400+30:1800+30"]

1. e4 {[%emt 0:00:03]} e5 {[%emt 0:04:08]} 2. d4 {[%emt 0:03:04]} exd4 {[%emt 0:00:08]} 3. Qxd4 {[%emt 0:00:04]} Nc6 {[%emt 0:00:11]} 4. Qe3 {[%emt 0:00:30]} g6 {[%emt 0:00:59]} 5. Nc3 {[%emt 0:05:35]} Bg7 {[%emt 0:00:06]} 6. Bd2 {[%emt 0:07:32]} Nge7 {[%emt 0:00:06]} 7. O-O-O {[%emt 0:01:04]} O-O {[%emt 0:00:07]} 8. Nge2 {[%emt 0:05:37]} d5 {[%emt 0:07:50]} 9. exd5 {[%emt 0:06:24]} Nxd5 {[%emt 0:01:26]} 10. Qc5 {[%emt 0:01:03]} Nxc3 {[%emt 0:12:04]} 11. Bxc3 {[%emt 0:03:23]} Qe7 {[%emt 0:01:45]} 12. Qxe7 {[%emt 0:03:17]} Nxe7 {[%emt 0:00:09]} 13. Bxg7 {[%emt 0:01:59]} Kxg7 {[%emt 0:00:32]} 14. Nc3 {[%emt 0:03:47]} Bf5 {[%emt 0:00:53]} 15. Bd3 {[%emt 0:02:55]} Rad8 {[%emt 0:02:07]} 16. Rhe1 {[%emt 0:03:27]} Be6 {[%emt 0:34:17]} 17. Bc4 {[%emt 0:12:24]} Rxd1+ {[%emt 0:01:40]} 18. Kxd1 {[%emt 0:03:41]} Bxc4 {[%emt 0:01:56]} 19. Rxe7 {[%emt 0:00:09]} Rd8+ {[%emt 0:00:33]} 20. Ke1 {[%emt 0:06:07]} Rc8 {[%emt 0:00:15]} 21. Re5 {[%emt 0:02:53]} b6 {[%emt 0:07:21]} 22. f4 {[%emt 0:11:00]} Kf8 {[%emt 0:01:12]} 23. Nd5 {[%emt 0:04:31]} Rd8 {[%emt 0:09:26]} 24. Nxc7 {[%emt 0:06:20]} Bxa2 {[%emt 0:05:39]} 25. Nb5 {[%emt 0:01:44]} a6 {[%emt 0:01:28]} 26. Nc3 {[%emt 0:01:00]} Be6 {[%emt 0:00:36]} 27. g3 {[%emt 0:00:54]} Ke7 {[%emt 0:02:22]} 28. Re3 {[%emt 0:00:46]} Rd4 {[%emt 0:01:10]} 29. b3 {[%emt 0:01:01]} h6 {[%emt 0:00:28]} 30. Na4 {[%emt 0:00:42]} Rd6 {[%emt 0:00:26]} 31. c4 {[%emt 0:01:10]} Rc6 {[%emt 0:03:14]} 32. Nc3 {[%emt 0:00:21]} Kd6 {[%emt 0:00:57]} 33. Ne4+ {[%emt 0:01:05]} Kc7 {[%emt 0:00:10]} 34. Kd2 {[%emt 0:00:18]} b5 {[%emt 0:00:44]} 35. cxb5 {[%emt 0:00:56]} axb5 {[%emt 0:00:05]} 36. Nc3 {[%emt 0:00:50]} Kb6 {[%emt 0:00:40]} 37. Re5 {[%emt 0:00:15]} Rc5 {[%emt 0:00:13]} 38. b4 {[%emt 0:00:29]} Rc4 {[%emt 0:01:30]} 39. Rxb5+ {[%emt 0:00:11]} Kc6 {[%emt 0:00:17]} 40. Rb8 {[%emt 0:00:00]} Kc7 {[%emt 0:00:00]} 41. Rh8 {[%emt 0:11:18]} Rxb4 {[%emt 0:03:20]} 42. Rxh6 {[%emt 0:00:30]} Kd6 {[%emt 0:05:47]} 43. Rh8 {[%emt 0:03:47]} Rb2+ {[%emt 0:00:49]} 44. Ke3 {[%emt 0:01:31]} Rb3 {[%emt 0:00:19]} 45. Kd4 {[%emt 0:00:05]} Rb4+ {[%emt 0:00:15]} 46. Ke3 {[%emt 0:00:01]} Rb3 {[%emt 0:00:07]} 47. Kd2 {[%emt 0:00:04]} Rb2+ {[%emt 0:00:05]} 48. Ke1 {[%emt 0:01:41]} Ke7 {[%emt 0:01:30]} 49. Ne4 {[%emt 0:02:02]} Rb1+ {[%emt 0:02:29]} 50. Kd2 {[%emt 0:00:16]} Rb2+ {[%emt 0:00:07]} 51. Kc3 {[%emt 0:00:43]} Rb3+ {[%emt 0:00:18]} 52. Kc2 {[%emt 0:00:56]} Rb4 {[%emt 0:01:21]} 53. Nd2 {[%emt 0:00:28]} Ra4 {[%emt 0:01:48]} 54. Rb8 {[%emt 0:02:40]} Ra1 {[%emt 0:00:10]} 55. Rb1 {[%emt 0:08:05]} Bf5+ {[%emt 0:07:09]} 56. Kb2 {[%emt 0:00:36]} Rxb1+ {[%emt 0:00:38]} 57. Nxb1 {[%emt 0:00:01]} Bxb1 {[%emt 0:05:10]} 58. Kxb1 {[%emt 0:00:22]} Ke6 {[%emt 0:00:41]} 59. g4 {[%emt 0:02:55]} Kd5 {[%emt 0:00:50]} 60. h4 {[%emt 0:00:13]} Ke4 {[%emt 0:00:14]} 61. h5 {[%emt 0:01:27]} 1/2-1/2

[Event "Cracovia Festival-A 2023"]
[Site "Krakow"]
[Date "2023.12.30"]
[Round "4.45"]
[White "Loftgaard, Mikkel Vinh"]
[Black "Gbiorczyk, Mikolaj"]
[Result "1-0"]
[ECO "C00"]
[WhiteElo "2322"]
[BlackElo "2137"]
[Annotator "RC"]
[PlyCount "117"]
[EventDate "2023.12.24"]
[EventType "swiss"]
[EventCountry "POL"]
[SourceTitle "playchess.com"]
[Source "ChessBase"]
[SourceQuality "1"]
[TimeControl "40/5400+30:1800+30"]

1. e4 {[%emt 0:09:45]} e6 {[%emt 0:00:21]} 2. d4 {[%emt 0:00:10]} d5 {[%emt 0:00:07]} 3. Bd3 {[%emt 0:00:19]} c5 {[%emt 0:00:41]} 4. exd5 {[%emt 0:01:29]} exd5 {[%emt 0:00:17]} 5. Nf3 {[%emt 0:03:08]} c4 {[%emt 0:00:40]} 6. Be2 {[%emt 0:00:23]} Bd6 {[%emt 0:00:39]} 7. O-O {[%emt 0:00:08]} Nf6 {[%emt 0:00:30]} 8. b3 {[%emt 0:00:36]} cxb3 {[%emt 0:00:16]} 9. axb3 {[%emt 0:00:08]} O-O {[%emt 0:00:36]} 10. Bg5 {[%emt 0:00:07]} Nbd7 {[%emt 0:16:45]} 11. c4 {[%emt 0:00:40]} h6 {[%emt 0:01:08]} 12. Bh4 g5 {[%emt 0:12:43]} 13. Bg3 {[%emt 0:07:12]} Bxg3 {[%emt 0:01:14]} 14. hxg3 {[%emt 0:00:03]} Ne4 {[%emt 0:04:13]} 15. Bd3 {[%emt 0:04:55]} Ndf6 {[%emt 0:08:09]} 16. Qc2 {[%emt 0:03:57]} Bf5 {[%emt 0:05:01]} 17. Nc3 {[%emt 0:04:34]} Nxc3 {[%emt 0:08:16]} 18. Bxf5 {[%emt 0:00:43]} Nce4 {[%emt 0:01:41]} 19. Rfe1 {[%emt 0:02:31]} Qc7 {[%emt 0:05:09]} 20. Ne5 {[%emt 0:02:15]} Rfd8 {[%emt 0:03:49]} 21. Rad1 {[%emt 0:08:27]} a5 {[%emt 0:02:57]} 22. Bxe4 {[%emt 0:01:54]} Nxe4 {[%emt 0:02:37]} 23. Ng4 {[%emt 0:00:20]} Ra6 {[%emt 0:05:41]} 24. Ne3 {[%emt 0:01:33]} Nf6 {[%emt 0:03:54]} 25. Nf5 {[%emt 0:02:09]} Ne4 {[%emt 0:01:29]} 26. Ne3 {[%emt 0:05:28]} Nf6 {[%emt 0:00:22]} 27. Rc1 {[%emt 0:07:42]} Qd7 {[%emt 0:03:14]} 28. Nf5 {[%emt 0:00:56]} Ne4 {[%emt 0:01:20]} 29. g4 {[%emt 0:00:06]} Re6 {[%emt 0:06:25]} 30. cxd5 {[%emt 0:03:10]} Qxd5 {[%emt 0:00:04]} 31. f3 {[%emt 0:01:15]} Nd6 {[%emt 0:00:57]} 32. Ne7+ {[%emt 0:00:52]} Rxe7 {[%emt 0:00:03]} 33. Rxe7 {[%emt 0:00:03]} Qxd4+ {[%emt 0:00:30]} 34. Kh1 {[%emt 0:00:36]} Qf6 {[%emt 0:02:03]} 35. Qe2 {[%emt 0:01:46]} b5 {[%emt 0:01:29]} 36. Ra7 {[%emt 0:01:20]} a4 {[%emt 0:01:59]} 37. bxa4 {[%emt 0:00:10]} bxa4 {[%emt 0:00:25]} 38. Rxa4 {[%emt 0:00:14]} Re8 {[%emt 0:00:21]} 39. Qd2 {[%emt 0:00:25]} Re6 {[%emt 0:00:50]} 40. Ra8+ {[%emt 0:00:00]} Kg7 {[%emt 0:00:00]} 41. Qb4 {[%emt 0:04:31]} Qe7 {[%emt 0:08:51]} 42. Ra6 {[%emt 0:09:04]} Ne8 {[%emt 0:04:06]} 43. Qxe7 {[%emt 0:02:56]} Rxe7 {[%emt 0:00:31]} 44. Rcc6 {[%emt 0:00:07]} Nc7 {[%emt 0:00:52]} 45. Ra7 {[%emt 0:01:02]} Nd5 {[%emt 0:01:24]} 46. Rxe7 {[%emt 0:00:19]} Nxe7 {[%emt 0:00:04]} 47. Rd6 {[%emt 0:00:09]} Ng6 {[%emt 0:07:22]} 48. Kg1 {[%emt 0:01:43]} Nf4 {[%emt 0:03:22]} 49. Kf2 {[%emt 0:00:17]} Ng6 {[%emt 0:01:49]} 50. Ke3 {[%emt 0:00:18]} Ne7 {[%emt 0:02:03]} 51. g3 {[%emt 0:00:23]} Ng8 {[%emt 0:01:51]} 52. Ke4 {[%emt 0:00:40]} Ne7 {[%emt 0:00:25]} 53. Rd7 {[%emt 0:01:49]} Kf6 {[%emt 0:00:52]} 54. Rd6+ {[%emt 0:01:00]} Kg7 {[%emt 0:00:04]} 55. f4 {[%emt 0:00:16]} gxf4 {[%emt 0:00:38]} 56. gxf4 {[%emt 0:00:14]} Ng8 {[%emt 0:01:48]} 57. Ke5 {[%emt 0:00:48]} Ne7 {[%emt 0:00:35]} 58. f5 {[%emt 0:00:10]} Ng8 {[%emt 0:00:09]} 59. f6+ {[%emt 0:01:32]} 1-0

[Event "Cracovia Festival-A 2023"]
[Site "Krakow"]
[Date "2023.12.30"]
[Round "4.46"]
[White "Panek, Bartosz"]
[Black "Pacuszka, Tomasz"]
[Result "1/2-1/2"]
[ECO "B13"]
[WhiteElo "2232"]
[BlackElo "2124"]
[Annotator "ChessBase"]
[PlyCount "58"]
[EventDate "2023.12.24"]
[EventType "swiss"]
[EventCountry "POL"]
[SourceTitle "playchess.com"]
[Source "ChessBase"]
[SourceQuality "1"]
[TimeControl "40/5400+30:1800+30"]

1. e4 {[%emt 0:00:03]} c6 {[%emt 0:00:08]} 2. d4 {[%emt 0:00:06]} d5 {[%emt 0:00:08]} 3. exd5 {[%emt 0:00:10]} cxd5 {[%emt 0:00:06]} 4. Nf3 {[%emt 0:00:08]} Nc6 {[%emt 0:00:57]} 5. c3 {[%emt 0:02:03]} Bg4 {[%emt 0:01:53]} 6. Qb3 {[%emt 0:00:11]} Qd7 {[%emt 0:02:27]} 7. Ne5 {[%emt 0:00:08]} Nxe5 {[%emt 0:00:10]} 8. dxe5 {[%emt 0:00:06]} a6 {[%emt 0:00:07]} 9. Na3 {[%emt 0:00:05]} e6 {[%emt 0:09:54]} 10. Nb5 {[%emt 0:02:03]} Rc8 {[%emt 0:00:29]} 11. Na7 {[%emt 0:04:09]} Ra8 {[%emt 0:00:27]} 12. Nb5 {[%emt 0:01:29]} Rc8 {[%emt 0:00:06]} 13. Be3 {[%emt 0:01:02]} f6 {[%emt 0:05:57]} 14. Nd6+ {[%emt 0:03:20]} Bxd6 {[%emt 0:00:23]} 15. exd6 {[%emt 0:00:05]} Rc6 {[%emt 0:11:00]} 16. c4 {[%emt 0:10:58]} Qxd6 {[%emt 0:08:47]} 17. Qxb7 {[%emt 0:20:45]} Ne7 {[%emt 0:06:31]} 18. cxd5 {[%emt 0:13:04]} Nxd5 {[%emt 0:05:18]} 19. h3 {[%emt 0:14:36]} Nxe3 {[%emt 0:04:07]} 20. Qa8+ {[%emt 0:00:09]} Kf7 {[%emt 0:08:37]} 21. Qa7+ {[%emt 0:00:06]} Rc7 {[%emt 0:02:15]} 22. Qxe3 {[%emt 0:00:07]} Rd8 {[%emt 0:03:57]} 23. f3 {[%emt 0:02:59]} Qb4+ {[%emt 0:04:10]} 24. Kf2 {[%emt 0:00:17]} Qxb2+ {[%emt 0:05:27]} 25. Be2 {[%emt 0:00:05]} Bf5 {[%emt 0:00:21]} 26. Rad1 {[%emt 0:02:23]} Rxd1 {[%emt 0:02:33]} 27. Rxd1 {[%emt 0:00:06]} Qxa2 28. g4 Bg6 {[%emt 0:06:19]} 29. Qb6 {[%emt 0:02:40]} Qc2 {[%emt 0:00:55]} 1/2-1/2

[Event "Cracovia Festival-A 2023"]
[Site "Krakow"]
[Date "2023.12.30"]
[Round "4.47"]
[White "Katsanis, Vasileios Dim"]
[Black "Jaskolka, Tomasz"]
[Result "0-1"]
[ECO "D02"]
[WhiteElo "2133"]
[BlackElo "2222"]
[Annotator "RC"]
[PlyCount "98"]
[EventDate "2023.12.24"]
[EventType "swiss"]
[EventCountry "POL"]
[SourceTitle "playchess.com"]
[Source "ChessBase"]
[SourceQuality "1"]
[TimeControl "40/5400+30:1800+30"]

1. d4 {[%emt 0:00:29]} d5 {[%emt 0:00:13]} 2. Nf3 {[%emt 0:00:21]} e6 {[%emt 0:00:17]} 3. c4 {[%emt 0:00:08]} c6 {[%emt 0:00:04]} 4. cxd5 {[%emt 0:02:57]} exd5 {[%emt 0:00:14]} 5. Nc3 {[%emt 0:00:19]} Bd6 {[%emt 0:00:18]} 6. Qc2 {[%emt 0:00:04]} h6 {[%emt 0:00:30]} 7. g3 {[%emt 0:00:08]} Nf6 {[%emt 0:00:16]} 8. Bf4 {[%emt 0:00:06]} O-O {[%emt 0:00:23]} 9. Bxd6 {[%emt 0:00:13]} Qxd6 {[%emt 0:00:04]} 10. Bg2 {[%emt 0:00:04]} Re8 {[%emt 0:00:20]} 11. O-O {[%emt 0:00:08]} Nbd7 {[%emt 0:00:16]} 12. Rac1 {[%emt 0:02:33]} Qe7 {[%emt 0:02:36]} 13. Rfd1 {[%emt 0:08:00]} Ne4 {[%emt 0:07:09]} 14. e3 {[%emt 0:13:01]} Nd6 {[%emt 0:00:25]} 15. b3 {[%emt 0:00:47]} Nf6 {[%emt 0:00:29]} 16. Ne5 {[%emt 0:00:26]} h5 {[%emt 0:03:46]} 17. h4 {[%emt 0:01:50]} Ng4 {[%emt 0:01:07]} 18. Nxg4 {[%emt 0:01:49]} hxg4 {[%emt 0:00:33]} 19. Bf1 {[%emt 0:03:32]} g5 {[%emt 0:10:07]} 20. hxg5 {[%emt 0:00:27]} Qxg5 {[%emt 0:00:07]} 21. Bd3 {[%emt 0:01:36]} Bf5 {[%emt 0:06:28]} 22. Kg2 {[%emt 0:08:56]} Re6 {[%emt 0:03:41]} 23. Bxf5 {[%emt 0:07:27]} Nxf5 {[%emt 0:00:25]} 24. e4 {[%emt 0:12:34]} dxe4 {[%emt 0:00:28]} 25. Nxe4 {[%emt 0:21:28]} Qh5 {[%emt 0:22:09]} 26. Rh1 {[%emt 0:00:33]} Qg6 {[%emt 0:00:02]} 27. Nc5 {[%emt 0:03:30]} Re7 {[%emt 0:00:43]} 28. Qc3 {[%emt 0:00:58]} Qf6 {[%emt 0:01:10]} 29. Rce1 {[%emt 0:01:26]} Rae8 {[%emt 0:02:06]} 30. Qd2 {[%emt 0:04:31]} Nxd4 {[%emt 0:12:40]} 31. Rxe7 Rxe7 32. Rh4 {[%emt 0:03:00]} Kf8 {[%emt 0:07:11]} 33. Qe3 {[%emt 0:00:40]} Nf5 {[%emt 0:02:32]} 34. Qd3 {[%emt 0:01:09]} Nxh4+ {[%emt 0:00:46]} 35. gxh4 {[%emt 0:00:02]} Qf3+ {[%emt 0:00:45]} 36. Qxf3 {[%emt 0:00:05]} gxf3+ {[%emt 0:00:06]} 37. Kxf3 {[%emt 0:00:02]} b6 {[%emt 0:00:24]} 38. Ne4 {[%emt 0:00:00]} c5 {[%emt 0:00:00]} 39. Kf4 {[%emt 0:00:00]} Rc7 {[%emt 0:00:00]} 40. Nd6 {[%emt 0:00:00]} Ke7 {[%emt 0:00:00]} 41. Nf5+ {[%emt 0:00:48]} Kf6 {[%emt 0:02:42]} 42. Ne3 {[%emt 0:00:22]} Rd7 {[%emt 0:00:22]} 43. Ng4+ {[%emt 0:00:03]} Kg7 {[%emt 0:00:13]} 44. Ke3 {[%emt 0:00:37]} Rd1 {[%emt 0:00:43]} 45. Ne5 {[%emt 0:01:00]} Ra1 {[%emt 0:00:52]} 46. f4 {[%emt 0:00:16]} Rxa2 {[%emt 0:00:21]} 47. Kd3 {[%emt 0:00:03]} Rh2 {[%emt 0:00:40]} 48. Nc6 {[%emt 0:00:04]} Rxh4 {[%emt 0:00:11]} 49. Nxa7 {[%emt 0:00:09]} Rxf4 {[%emt 0:00:14]} 0-1

[Event "Cracovia Festival-A 2023"]
[Site "Krakow"]
[Date "2023.12.30"]
[Round "4.48"]
[White "Gkavardinas, Antonios"]
[Black "Leskiewicz, Ignacy"]
[Result "1-0"]
[ECO "B12"]
[WhiteElo "2141"]
[BlackElo "2177"]
[Annotator "RC"]
[PlyCount "83"]
[EventDate "2023.12.24"]
[EventType "swiss"]
[EventCountry "POL"]
[SourceTitle "playchess.com"]
[Source "ChessBase"]
[SourceQuality "1"]
[TimeControl "40/5400+30:1800+30"]

1. e4 {[%emt 0:00:03]} c6 {[%emt 0:02:34]} 2. d4 {[%emt 0:00:08]} g6 {[%emt 0:00:04]} 3. Nf3 {[%emt 0:04:03]} Bg7 {[%emt 0:00:08]} 4. Bd3 {[%emt 0:03:04]} d5 5. e5 {[%emt 0:00:42]} c5 {[%emt 0:08:31]} 6. c3 {[%emt 0:00:47]} Nc6 {[%emt 0:01:11]} 7. h3 {[%emt 0:08:57]} Qb6 {[%emt 0:27:32]} 8. O-O {[%emt 0:03:03]} Bd7 {[%emt 0:02:11]} 9. dxc5 {[%emt 0:05:32]} Qc7 {[%emt 0:10:48]} 10. Re1 {[%emt 0:07:32]} Nxe5 {[%emt 0:04:21]} 11. Nxe5 {[%emt 0:01:43]} Bxe5 {[%emt 0:00:02]} 12. Qe2 {[%emt 0:03:15]} Bg7 {[%emt 0:01:11]} 13. Be3 {[%emt 0:02:04]} e6 {[%emt 0:07:47]} 14. Bd4 {[%emt 0:08:05]} Kf8 {[%emt 0:00:01]} 15. Nd2 {[%emt 0:01:35]} Ne7 {[%emt 0:05:20]} 16. Qe3 {[%emt 0:08:10]} a5 {[%emt 0:04:36]} 17. f4 {[%emt 0:03:34]} Nc6 {[%emt 0:04:03]} 18. Rac1 {[%emt 0:01:56]} Nxd4 {[%emt 0:04:19]} 19. cxd4 {[%emt 0:00:08]} f6 {[%emt 0:01:27]} 20. h4 {[%emt 0:04:40]} Kf7 {[%emt 0:05:53]} 21. Nf3 {[%emt 0:03:46]} Rhe8 {[%emt 0:03:36]} 22. Rc2 {[%emt 0:03:21]} Bh6 {[%emt 0:01:21]} 23. g3 {[%emt 0:01:06]} Kg8 {[%emt 0:00:49]} 24. h5 {[%emt 0:04:05]} Re7 {[%emt 0:02:45]} 25. hxg6 {[%emt 0:03:34]} hxg6 {[%emt 0:00:02]} 26. Bxg6 {[%emt 0:01:03]} Rg7 {[%emt 0:00:06]} 27. Nh4 {[%emt 0:00:40]} Ra6 {[%emt 0:01:49]} 28. Qf3 {[%emt 0:01:12]} Be8 {[%emt 0:00:57]} 29. Bxe8 {[%emt 0:03:04]} Bxf4 {[%emt 0:00:39]} 30. Ng6 {[%emt 0:01:00]} Bg5 {[%emt 0:00:53]} 31. Rh2 {[%emt 0:01:58]} Rh7 {[%emt 0:00:04]} 32. Rxh7 {[%emt 0:00:36]} Qxh7 {[%emt 0:00:01]} 33. Nf4 {[%emt 0:00:25]} Qe7 {[%emt 0:01:24]} 34. Bb5 {[%emt 0:00:16]} Ra8 {[%emt 0:00:28]} 35. Rxe6 {[%emt 0:00:18]} Qf7 {[%emt 0:00:23]} 36. Qxd5 {[%emt 0:01:01]} Kg7 {[%emt 0:00:38]} 37. Qd7 {[%emt 0:00:21]} Qxd7 {[%emt 0:00:26]} 38. Bxd7 {[%emt 0:00:03]} Rd8 {[%emt 0:00:25]} 39. Re7+ {[%emt 0:00:28]} Kh6 {[%emt 0:00:11]} 40. Bf5 {[%emt 0:00:00]} Rh8 {[%emt 0:00:00]} 41. d5 {[%emt 0:00:37]} Rg8 {[%emt 0:03:06]} 42. Rh7# {[%emt 0:00:08]} 1-0